bitfinex/quotes_BTCUSD_20220205
["timestamp","ask_amount","ask_price","bid_price","bid_amount"]
[1644037784732,0.195,41468.0,41467.0,0.120538]
[1644037784929,0.41865797,41468.0,41467.0,0.120538]
[1644037785132,0.331113,41467.0,41460.0,0.120556]
[1644037785329,0.045,41461.0,41460.0,0.120556]
[1644037786529,0.045,41461.0,41460.0,0.194862]
[1644037787332,0.095,41461.0,41460.0,0.120556]
[1644037787565,0.095,41461.0,41457.0,0.80355219]
[1644037787766,0.045,41458.0,41457.0,0.70580159]
[1644037788365,0.045,41458.0,41457.0,0.78269929]
[1644037790267,0.045,41458.0,41457.0,0.1371807]
[1644037796967,0.05,41458.0,41457.0,0.1371807]
[1644037797169,0.04491367,41458.0,41457.0,0.1371807]
[1644037798825,0.04491367,41458.0,41457.0,0.13736163]
[1644037800423,0.04399429,41458.0,41457.0,0.13736163]
[1644037800622,0.22559603,41462.0,41457.0,0.13736163]
[1644037800826,0.04399429,41458.0,41457.0,0.13736163]
[1644037804071,0.04399429,41458.0,41457.0,0.06046393]
[1644037807217,0.04399429,41458.0,41457.0,0.00018093]
[1644037807418,0.04399429,41458.0,41456.0,0.120567]
[1644037811068,0.04399429,41458.0,41456.0,0.12074793]
[1644037813468,0.15,41457.0,41456.0,0.12074793]
[1644037813670,0.04399429,41458.0,41456.0,0.12074793]
[1644037818976,0.04399429,41458.0,41457.0,0.00600571]
[1644037819179,0.04399429,41458.0,41457.0,0.00618664]
[1644037820376,0.04399429,41458.0,41457.0,0.00018093]
[1644037820576,0.04399429,41458.0,41456.0,0.16894793]
[1644037821436,0.04399429,41458.0,41457.0,0.00600571]
[1644037821638,0.04399429,41458.0,41457.0,0.00018093]
[1644037821836,0.04399429,41458.0,41457.0,0.00600571]
[1644037822038,0.04399429,41458.0,41457.0,0.00618664]
[1644037822836,0.04392435,41458.0,41457.0,0.00625658]
[1644037823237,0.04392435,41458.0,41457.0,0.06653158]
[1644037826471,0.04392435,41458.0,41457.0,0.06045593]
[1644037827072,0.04392435,41458.0,41457.0,0.06653158]
[1644037827274,0.04392435,41458.0,41457.0,0.06045593]
[1644037831023,0.04392435,41458.0,41457.0,0.34389518]
[1644037831224,0.04392435,41458.0,41457.0,0.44389518]
[1644037831425,0.04392435,41468.0,41458.0,0.060269]
[1644037831628,0.00083405,41470.0,41467.0,0.00607565]
[1644037831824,0.00083405,41470.0,41468.0,0.108454]
[1644037832025,0.58272497,41478.0,41470.0,0.75]
[1644037832026,0.16826784,41478.0,41470.0,0.75]
[1644037832225,0.16826784,41478.0,41477.0,0.00607565]
[1644037832429,0.27206416,41478.0,41477.0,0.00607565]
[1644037832675,0.54210902,41478.0,41474.0,0.00607565]
[1644037832876,0.34245251,41478.0,41474.0,0.00607565]
[1644037833177,0.05,41477.0,41476.0,0.120496]
[1644037833377,0.00034349,41479.0,41476.0,0.120496]
[1644037833577,0.20450049,41483.0,41477.0,0.00607565]
[1644037833578,0.04426784,41480.0,41477.0,0.00607565]
[1644037833777,0.04392435,41480.0,41478.0,0.0482]
[1644037833977,0.04392435,41480.0,41478.0,0.05427565]
[1644037834177,0.04426784,41480.0,41478.0,0.05427565]
[1644037834377,0.04392435,41480.0,41478.0,0.05427565]
[1644037834778,0.04392435,41480.0,41479.0,0.05]
[1644037834981,0.04392435,41480.0,41479.0,0.0982]
[1644037835179,0.04392435,41480.0,41479.0,0.0482]
[1644037837225,0.04392435,41480.0,41479.0,0.0982]
[1644037837426,0.04392435,41480.0,41479.0,0.0482]
[1644037846123,0.19392435,41480.0,41479.0,0.0482]
[1644037846324,0.04392435,41480.0,41479.0,0.0482]
[1644037846523,0.19392435,41480.0,41479.0,0.0482]
[1644037846924,0.04392435,41480.0,41479.0,0.0482]
[1644037847323,0.04392435,41480.0,41479.0,0.0982]
[1644037848371,0.04392435,41480.0,41479.0,0.0482]
[1644037848576,0.19392435,41480.0,41479.0,0.0482]
[1644037849673,0.40863283,41480.0,41479.0,0.0482]
[1644037849874,0.25863283,41480.0,41479.0,0.0482]
[1644037850075,0.25863283,41480.0,41479.0,0.04809896]
[1644037850275,0.40863283,41480.0,41479.0,0.04809896]
[1644037852618,0.40863283,41480.0,41478.0,0.06024]
[1644037852819,0.40897632,41480.0,41478.0,0.06024]
[1644037853520,0.19426784,41480.0,41478.0,0.06024]
[1644037854720,0.19397761,41480.0,41478.0,0.06024]
[1644037857274,0.04426784,41480.0,41478.0,0.06024]
[1644037858577,0.09426784,41480.0,41478.0,0.06024]
[1644037858824,0.04426784,41480.0,41478.0,0.06024]
[1644037859417,0.000346,41479.0,41478.0,0.06024]
[1644037861126,0.09181148,41480.0,41478.0,0.05953607]
[1644037861823,0.14970977,41479.0,41478.0,0.05953607]
[1644037870076,0.09146799,41480.0,41478.0,0.13085546]
[1644037871871,0.09146799,41480.0,41478.0,0.13693111]
[1644037872073,0.24550073,41479.0,41478.0,0.13693111]
[1644037872274,0.24550073,41479.0,41478.0,0.13085546]
[1644037872872,0.09146799,41480.0,41478.0,0.13085546]
[1644037874726,0.14970977,41479.0,41478.0,0.13085546]
[1644037874926,0.36608783,41479.0,41478.0,0.13085546]
[1644037875127,0.36608783,41479.0,41478.0,0.13079546]
[1644037875325,0.21637806,41479.0,41478.0,0.13079546]
[1644037875526,0.09146799,41480.0,41478.0,0.13687111]
[1644037876427,0.30173114,41480.0,41478.0,0.13079546]
[1644037877572,0.2541875,41480.0,41478.0,0.13079546]
[1644037879378,0.04392435,41480.0,41478.0,0.13079546]
[1644037879579,0.04392435,41480.0,41478.0,0.13687111]
[1644037881335,0.04030815,41480.0,41478.0,0.13079546]
[1644037881520,0.04030815,41479.0,41478.0,0.13079546]
[1644037884524,0.00075188,41481.0,41478.0,0.13079546]
[1644037884925,0.03669195,41479.0,41478.0,0.13079546]
[1644037885168,0.03669195,41479.0,41478.0,0.05947607]
[1644037885568,0.18640172,41479.0,41478.0,0.05947607]
[1644037891230,0.25379928,41479.0,41478.0,0.05947607]
[1644037891624,0.18640172,41479.0,41478.0,0.05947607]
[1644037895371,0.48640172,41479.0,41478.0,0.05947607]
[1644037895573,0.48640172,41479.0,41471.0,0.09732974]
[1644037895574,1.081113,41477.0,41471.0,0.09732974]
[1644037895774,0.56505836,41472.0,41470.0,6e-05]
[1644037896076,0.33753733,41471.0,41470.0,6e-05]
[1644037896522,0.6310607,41471.0,41470.0,6e-05]
[1644037897924,0.93960377,41471.0,41470.0,6e-05]
[1644037903079,0.2039336,41471.0,41470.0,6e-05]
[1644037903477,0.1939336,41471.0,41470.0,6e-05]
[1644037904122,0.27782467,41471.0,41470.0,6e-05]
[1644037904727,0.60893767,41471.0,41470.0,6e-05]
[1644037905323,0.89669277,41471.0,41470.0,6e-05]
[1644037906224,0.56557977,41471.0,41470.0,6e-05]
[1644037908078,0.4816887,41471.0,41470.0,6e-05]
[1644037909877,0.54928961,41471.0,41470.0,6e-05]
[1644037912831,0.20530351,41469.0,41468.0,0.058896]
[1644037913032,0.2895391,41469.0,41468.0,0.058166]
[1644037913238,0.54769611,41469.0,41468.0,0.058166]
[1644037913632,0.54769611,41469.0,41468.0,0.057796]
[1644037913832,0.2895391,41469.0,41468.0,0.057426]
[1644037914032,0.2895391,41469.0,41468.0,0.057056]
[1644037914232,0.2895391,41469.0,41468.0,0.056686]
[1644037914434,0.08423559,41469.0,41468.0,0.056316]
[1644037914733,0.08423559,41469.0,41468.0,0.055946]
[1644037914933,0.08423559,41469.0,41468.0,0.055576]
[1644037915172,0.08423559,41469.0,41468.0,0.055206]
[1644037915372,0.08423559,41469.0,41468.0,0.054836]
[1644037915573,0.3466224,41469.0,41468.0,0.054466]
[1644037915777,0.3466224,41469.0,41468.0,0.054096]
[1644037927024,0.29907876,41469.0,41468.0,0.054096]
[1644037928425,0.55976157,41469.0,41468.0,0.054096]
[1644037930074,0.29907876,41469.0,41468.0,0.054096]
[1644037930774,0.29907876,41469.0,41466.0,0.06107778]
[1644037930975,0.29907876,41469.0,41466.0,0.060283]
[1644037931174,0.29907876,41469.0,41466.0,0.06107778]
[1644037931380,0.3466224,41469.0,41466.0,0.06107778]
[1644037931676,0.29907876,41469.0,41466.0,0.06107778]
[1644037932076,0.26568226,41468.0,41466.0,0.060283]
[1644037933680,0.19725341,41467.0,41466.0,0.060283]
[1644037933928,0.14970977,41467.0,41466.0,0.060283]
[1644037934930,0.40747735,41467.0,41466.0,0.060283]
[1644037935929,0.40747735,41467.0,41466.0,0.0548247]
[1644037936129,0.40747735,41467.0,41466.0,0.0510447]
[1644037941329,0.14970977,41467.0,41466.0,0.0510447]
[1644037941925,0.40592411,41467.0,41466.0,0.0510447]
[1644037945577,0.14970977,41467.0,41466.0,0.0510447]
[1644037960178,0.14964822,41467.0,41466.0,0.0510447]
[1644037967780,0.04754364,41468.0,41466.0,0.0510447]
[1644037968176,0.19691826,41468.0,41467.0,0.01330805]
[1644037968779,0.19691826,41468.0,41466.0,0.0510447]
[1644037968981,0.19691826,41468.0,41467.0,0.01330805]
[1644037969178,0.19691826,41468.0,41466.0,0.0510447]
[1644037969977,0.19691826,41468.0,41467.0,0.01330805]
[1644037971430,0.19691826,41468.0,41467.0,0.01158228]
[1644037971628,0.23533598,41468.0,41467.0,0.01158228]
[1644037972029,0.03841772,41468.0,41467.0,0.01158228]
[1644037975074,0.23533598,41468.0,41466.0,0.1113117]
[1644037976276,0.03841772,41468.0,41466.0,0.1113117]
[1644037976479,0.23533598,41468.0,41466.0,0.1113117]
[1644037976878,0.03841772,41468.0,41467.0,0.01158228]
[1644037978925,0.07572457,41470.0,41468.0,0.060266]
[1644037979728,0.03841772,41469.0,41468.0,0.060266]
[1644037980032,0.07572457,41470.0,41468.0,0.060266]
[1644037980228,0.03841772,41469.0,41468.0,0.060266]
[1644037980426,0.07572457,41470.0,41468.0,0.060266]
[1644037981429,0.12326821,41470.0,41468.0,0.060266]
[1644037982578,0.07572457,41470.0,41468.0,0.060266]
[1644037983385,0.03841772,41471.0,41468.0,0.060266]
[1644037985383,0.03841772,41471.0,41470.0,0.01158228]
[1644037985584,0.03841772,41471.0,41470.0,0.07184828]
[1644037985784,0.03841772,41471.0,41470.0,0.060266]
[1644037987028,0.03841772,41471.0,41470.0,0.07184828]
[1644037993086,0.00079467,41473.0,41470.0,0.07184828]
[1644037993487,0.03841772,41475.0,41472.0,0.060257]
[1644037993694,0.04024772,41478.0,41474.0,0.00975228]
[1644037993929,0.04024772,41478.0,41477.0,0.08565591]
[1644037994127,0.04024772,41478.0,41477.0,0.15242591]
[1644037994331,0.04024772,41478.0,41477.0,0.21176291]
[1644037994332,0.04115772,41478.0,41477.0,0.21176291]
[1644037994534,0.04115772,41478.0,41477.0,0.21130291]
[1644037994731,0.04115772,41478.0,41477.0,0.21084291]
[1644037995527,0.04115772,41478.0,41477.0,0.27108991]
[1644037995928,0.04115772,41478.0,41477.0,0.56124373]
[1644037996529,0.04115772,41478.0,41477.0,0.65240145]
[1644037996729,0.04115772,41478.0,41477.0,0.66124373]
[1644037996930,0.04115772,41478.0,41477.0,0.65240145]
[1644037997130,0.04115772,41478.0,41477.0,0.65228937]
[1644037997330,0.04115772,41478.0,41477.0,0.66113165]
[1644037998390,0.04115772,41478.0,41477.0,0.65228937]
[1644037998586,0.04115772,41478.0,41477.0,0.66113165]
[1644038000290,0.04115772,41478.0,41477.0,0.70933165]
[1644038000488,0.04115772,41478.0,41477.0,0.65011673]
[1644038000691,0.04115772,41478.0,41477.0,0.35996291]
[1644038000988,0.04115772,41478.0,41477.0,0.25996291]
[1644038001190,0.04115772,41478.0,41477.0,0.64510653]
[1644038001629,0.04115772,41478.0,41477.0,0.35996291]
[1644038003528,0.04115772,41478.0,41477.0,0.25996291]
[1644038007382,0.04115772,41478.0,41477.0,0.21176291]
[1644038012981,0.04115772,41478.0,41477.0,0.20292063]
[1644038013182,0.04115772,41478.0,41477.0,0.21176291]
[1644038020783,0.00113714,41480.0,41477.0,0.21186565]
[1644038020983,0.19691826,41482.0,41477.0,0.21186565]
[1644038020984,0.04105498,41478.0,41477.0,0.21186565]
[1644038028382,0.04105498,41478.0,41477.0,0.127017]
[1644038028583,0.04105498,41478.0,41477.0,0.06919202]
[1644038030389,0.04105498,41478.0,41477.0,0.13444764]
[1644038031932,0.04105498,41478.0,41477.0,0.12550262]
[1644038034237,0.04105498,41478.0,41477.0,0.060247]
[1644038036389,0.04105498,41478.0,41477.0,0.05970051]
[1644038045789,0.04105498,41478.0,41477.0,0.05990051]
[1644038051989,0.23797324,41478.0,41477.0,0.05990051]
[1644038053288,0.29823122,41478.0,41477.0,0.05990051]
[1644038054947,0.23797324,41478.0,41477.0,0.05982149]
[1644038055744,0.23797324,41478.0,41477.0,0.0002]
[1644038055745,0.86908624,41478.0,41477.0,0.0002]
[1644038056546,0.89426777,41478.0,41477.0,0.0002]
[1644038056744,1.00786777,41478.0,41477.0,0.0002]
[1644038058786,0.75,41477.0,41464.0,0.00018489]
[1644038058993,0.060276,41471.0,41463.0,0.00018489]
[1644038059185,0.04105498,41464.0,41462.0,0.00894502]
[1644038059985,0.08908797,41463.0,41462.0,0.06922002]
[1644038060188,0.08908797,41463.0,41462.0,0.060275]
[1644038060388,0.04105498,41464.0,41462.0,0.060275]
[1644038061645,0.07587124,41463.0,41462.0,0.060275]
[1644038062239,0.07587124,41463.0,41462.0,0.06045989]
[1644038062740,0.04105498,41464.0,41462.0,0.06045989]
[1644038062941,0.04105498,41464.0,41463.0,0.00894502]
[1644038063140,0.04105498,41464.0,41463.0,0.00912991]
[1644038063942,0.04105498,41464.0,41463.0,0.00018489]
[1644038064145,0.04105498,41464.0,41462.0,0.06045989]
[1644038071138,0.04105498,41464.0,41463.0,0.00894502]
[1644038071339,0.04105498,41464.0,41463.0,0.00912991]
[1644038080293,0.25389163,41468.0,41463.0,0.06045219]
[1644038080498,0.25389163,41468.0,41464.0,0.060268]
[1644038080895,0.25389163,41468.0,41464.0,0.06045289]
[1644038083095,0.25377415,41468.0,41464.0,0.06045289]
[1644038083295,0.00029864,41472.0,41464.0,0.35026659]
[1644038083496,0.00034224,41478.0,41466.0,0.060267]
[1644038083698,0.00081482,41472.0,41468.0,0.060266]
[1644038084549,0.25352158,41473.0,41468.0,0.060266]
[1644038084947,0.00081485,41472.0,41468.0,0.060266]
[1644038085345,0.00081485,41472.0,41469.0,0.060263]
[1644038085545,0.00081485,41472.0,41470.0,0.06026]
[1644038085744,0.59890319,41477.0,41470.0,0.06026]
[1644038086146,0.00081484,41473.0,41471.0,0.0482]
[1644038086344,0.00081484,41473.0,41471.0,0.168724]
[1644038086553,0.00081484,41473.0,41472.0,0.14837598]
[1644038086744,0.00081484,41473.0,41472.0,0.19657598]
[1644038086945,0.3652,41479.0,41472.0,0.19657598]
[1644038087145,0.82002876,41480.0,41472.0,0.19657598]
[1644038087344,0.00079164,41475.0,41472.0,0.19657598]
[1644038087593,0.24063518,41475.0,41472.0,0.19657598]
[1644038088192,0.23984354,41475.0,41472.0,0.19657598]
[1644038093058,0.04105498,41473.0,41472.0,0.19657598]
[1644038093460,0.08859862,41473.0,41472.0,0.0482]
[1644038093860,0.04105498,41473.0,41472.0,0.0482]
[1644038094560,0.04105498,41473.0,41472.0,0.19692103]
[1644038099344,0.04105498,41473.0,41472.0,0.108461]
[1644038099549,0.05587797,41473.0,41471.0,0.120524]
[1644038099747,0.14937462,41472.0,41471.0,0.120524]
[1644038100144,0.00833433,41473.0,41471.0,0.120524]
[1644038100449,0.19691826,41472.0,41471.0,0.120524]
[1644038101045,0.00833433,41473.0,41471.0,0.120524]
[1644038109048,0.00833433,41473.0,41472.0,0.03474519]
[1644038109247,0.00833433,41473.0,41472.0,0.06949038]
[1644038112007,0.00833433,41473.0,41472.0,0.11115605]
[1644038112405,0.00833433,41473.0,41472.0,0.06949038]
[1644038114046,0.00833433,41473.0,41472.0,0.11115605]
[1644038115049,0.00833433,41473.0,41472.0,0.06949038]
[1644038115448,0.00833433,41473.0,41472.0,0.11115605]
[1644038117051,0.00833433,41473.0,41472.0,0.06949038]
[1644038117449,0.00833433,41473.0,41472.0,0.11115605]
[1644038118798,0.00833433,41473.0,41472.0,0.17141705]
[1644038120496,0.00827027,41473.0,41472.0,0.12975138]
[1644038120695,0.00827027,41473.0,41472.0,0.17148111]
[1644038121351,0.00827027,41473.0,41472.0,0.12975138]
[1644038123049,0.00827027,41473.0,41472.0,0.17148111]
[1644038123247,0.00827027,41473.0,41472.0,0.12975138]
[1644038127195,0.00827027,41473.0,41472.0,0.12967432]
[1644038127395,0.00827027,41473.0,41472.0,0.09500619]
[1644038127897,0.00827027,41473.0,41472.0,0.12967432]
[1644038133900,0.00827027,41473.0,41472.0,0.41143588]
[1644038134106,0.00827027,41473.0,41472.0,0.12967432]
[1644038140301,0.00827027,41473.0,41472.0,0.17140405]
[1644038142600,0.00827027,41473.0,41472.0,0.12967432]
[1644038144259,0.00079316,41475.0,41473.0,0.75]
[1644038144575,0.3889,41480.0,41476.0,0.060249]
[1644038144765,0.3889,41480.0,41478.0,0.05]
[1644038144964,0.00034224,41479.0,41478.0,0.05]
[1644038145162,0.14937462,41482.0,41479.0,0.7982]
[1644038145361,0.00034288,41481.0,41479.0,0.7982]
[1644038145562,0.00034288,41482.0,41479.0,0.8982]
[1644038145763,0.00450049,41483.0,41482.0,0.12733632]
[1644038145961,0.00450049,41483.0,41482.0,0.17553632]
[1644038150098,0.00450049,41483.0,41482.0,0.21028151]
[1644038150296,0.00450049,41483.0,41482.0,0.24494964]
[1644038155696,0.00385811,41483.0,41482.0,0.24494964]
[1644038156394,0.00034287,41484.0,41483.0,0.4]
[1644038156596,0.15037462,41488.0,41484.0,0.060237]
[1644038156597,0.00034287,41487.0,41484.0,0.060237]
[1644038156796,0.00034283,41487.0,41486.0,0.05]
[1644038156996,0.00034283,41487.0,41486.0,0.0982]
[1644038157197,0.00134283,41488.0,41486.0,0.0982]
[1644038157998,0.01717773,41489.0,41486.0,0.0982]
[1644038158197,0.01717773,41489.0,41486.0,0.158436]
[1644038158399,0.01717773,41489.0,41486.0,0.33914221]
[1644038158600,0.01717773,41489.0,41487.0,0.060235]
[1644038159045,0.01634283,41489.0,41487.0,0.060235]
[1644038160748,0.14937462,41488.0,41487.0,0.060235]
[1644038160949,0.3793225,41488.0,41487.0,0.060235]
[1644038161450,0.22994788,41488.0,41487.0,0.060235]
[1644038161749,0.01634283,41489.0,41487.0,0.41505822]
[1644038161948,0.0008349,41490.0,41489.0,0.52837534]
[1644038162148,0.0008349,41490.0,41489.0,0.57657534]
[1644038162348,0.0008349,41490.0,41489.0,0.71124347]
[1644038162609,0.00502409,41491.0,41489.0,0.71124347]
[1644038162610,0.00502409,41491.0,41489.0,1.08008929]
[1644038162813,0.00502409,41491.0,41490.0,0.41395945]
[1644038163009,0.00502409,41491.0,41490.0,0.57188226]
[1644038163208,0.00502409,41491.0,41490.0,0.67188226]
[1644038163411,0.00502409,41491.0,41490.0,0.56215945]
[1644038164210,0.00502409,41491.0,41490.0,0.67188226]
[1644038164709,0.00502409,41491.0,41490.0,0.79233295]
[1644038166449,0.00502409,41491.0,41490.0,0.84233295]
[1644038166750,0.00083486,41493.0,41491.0,1.040877]
[1644038166948,0.00083486,41493.0,41492.0,0.34130859]
[1644038167147,0.002,41494.0,41493.0,0.610219]
[1644038167348,0.002,41494.0,41493.0,0.808419]
[1644038167747,0.002,41494.0,41493.0,0.87783232]
[1644038168148,0.002,41494.0,41493.0,0.98755513]
[1644038168347,0.002,41494.0,41493.0,0.87783232]
[1644038171198,0.002,41494.0,41493.0,0.32783232]
[1644038171399,0.002,41494.0,41493.0,0.22783232]
[1644038172201,0.002,41494.0,41493.0,0.27783232]
[1644038173403,0.002,41494.0,41493.0,0.51679773]
[1644038173849,0.002,41494.0,41493.0,0.37783232]
[1644038174445,0.00034277,41495.0,41494.0,0.75]
[1644038174647,0.00034277,41497.0,41494.0,1.09314789]
[1644038174847,0.0054058,41498.0,41497.0,0.060214]
[1644038175049,0.0054058,41498.0,41497.0,0.43805816]
[1644038175247,0.0054058,41498.0,41497.0,0.48805816]
[1644038175446,0.0054058,41498.0,41497.0,0.58805816]
[1644038176447,0.0054058,41498.0,41497.0,0.66207669]
[1644038179202,0.03093478,41500.0,41497.0,0.66207669]
[1644038179203,0.002,41505.0,41498.0,0.75]
[1644038179406,0.016,41509.0,41503.0,0.810208]
[1644038179604,0.016,41509.0,41508.0,0.05]
[1644038179804,0.0003434,41510.0,41509.0,0.75]
[1644038180005,0.0003434,41510.0,41509.0,0.8]
[1644038180202,0.001,41511.0,41509.0,1.24591907]
[1644038180402,0.27091826,41517.0,41511.0,0.08930547]
[1644038180603,0.074,41517.0,41513.0,0.110187]
[1644038180804,0.074,41517.0,41514.0,0.0482]
[1644038181006,0.27091826,41517.0,41514.0,0.0482]
[1644038181202,0.074,41517.0,41514.0,0.0482]
[1644038181460,0.7579398,41523.0,41517.0,0.75]
[1644038181461,0.0011398,41523.0,41517.0,0.75]
[1644038181656,0.0011398,41523.0,41519.0,0.05]
[1644038181857,0.0011398,41523.0,41519.0,0.0482]
[1644038182261,0.24575395,41521.0,41519.0,0.0482]
[1644038182455,0.00755091,41521.0,41519.0,0.0482]
[1644038182956,0.19291826,41520.0,41519.0,0.0482]
[1644038183455,0.4209304,41520.0,41518.0,0.060186]
[1644038183662,0.22901214,41520.0,41518.0,0.060186]
[1644038183858,0.22901214,41520.0,41517.0,0.120371]
[1644038183859,0.4209304,41520.0,41517.0,0.120371]
[1644038184057,0.14437462,41514.0,41513.0,0.1204]
[1644038184258,0.19191826,41514.0,41509.0,0.06941332]
[1644038184457,0.22901214,41520.0,41509.0,0.06941332]
[1644038184657,0.331113,41519.0,41509.0,0.06941332]
[1644038184857,0.14437462,41511.0,41509.0,0.156889]
[1644038185099,0.19151063,41513.0,41510.0,0.120407]
[1644038185500,0.19151063,41513.0,41510.0,0.15507513]
[1644038185800,0.27689005,41512.0,41510.0,0.18982032]
[1644038185998,0.19151063,41513.0,41510.0,0.18982032]
[1644038187801,0.14437462,41513.0,41510.0,0.18982032]
[1644038188604,0.04297254,41514.0,41510.0,0.18982032]
[1644038188605,0.18734716,41514.0,41510.0,0.18982032]
[1644038189053,0.18651063,41514.0,41510.0,0.18982032]
[1644038189453,0.18734715,41514.0,41510.0,0.18982032]
[1644038190259,0.18651063,41514.0,41510.0,0.18982032]
[1644038190455,0.18734715,41514.0,41510.0,0.18982032]
[1644038190655,0.18734715,41514.0,41510.0,0.15515219]
[1644038190857,0.18734715,41514.0,41512.0,0.03466813]
[1644038191056,0.18734715,41514.0,41512.0,0.06941332]
[1644038191462,0.18651063,41514.0,41512.0,0.06941332]
[1644038192459,0.18651063,41514.0,41512.0,0.12961432]
[1644038193500,0.14437462,41514.0,41512.0,0.12961432]
[1644038193702,0.00083651,41515.0,41512.0,0.12961432]
[1644038193900,0.02096791,41518.0,41512.0,0.12961432]
[1644038194105,0.14437462,41514.0,41513.0,0.18058172]
[1644038195102,0.00118055,41515.0,41513.0,0.18058172]
[1644038195103,0.00034404,41515.0,41513.0,0.18058172]
[1644038195401,0.04297251,41516.0,41513.0,0.18058172]
[1644038195602,0.14437462,41514.0,41513.0,0.18058172]
[1644038196103,0.14437462,41514.0,41513.0,0.21524985]
[1644038196353,0.14437462,41514.0,41513.0,0.24999504]
[1644038196949,0.00034404,41515.0,41513.0,0.24999504]
[1644038197150,0.0008365,41516.0,41513.0,0.36019004]
[1644038197351,0.00034404,41515.0,41514.0,0.05]
[1644038197649,0.00118053,41517.0,41514.0,0.05]
[1644038197849,0.00034404,41516.0,41514.0,0.060189]
[1644038198048,0.00083649,41517.0,41514.0,0.060189]
[1644038198251,0.00034404,41516.0,41514.0,0.060189]
[1644038198449,0.00118053,41517.0,41514.0,0.060189]
[1644038198650,0.26020221,41519.0,41514.0,0.060189]
[1644038198651,0.00034404,41516.0,41514.0,0.060189]
[1644038198851,0.00034404,41518.0,41514.0,0.060189]
[1644038199050,0.00083648,41518.0,41514.0,0.060189]
[1644038199258,0.00118052,41518.0,41514.0,0.060189]
[1644038199852,0.00034404,41518.0,41514.0,0.060189]
[1644038200101,0.00083647,41518.0,41514.0,0.060189]
[1644038200304,0.00118051,41518.0,41514.0,0.060189]
[1644038200703,0.0151355,41519.0,41515.0,0.35]
[1644038200901,0.0151355,41519.0,41515.0,0.45]
[1644038201101,0.0151355,41519.0,41518.0,0.060191]
[1644038201501,0.0151355,41519.0,41518.0,0.09485913]
[1644038201703,0.0151355,41519.0,41518.0,0.12960432]
[1644038202101,0.001,41520.0,41518.0,0.12960432]
[1644038205749,0.001,41520.0,41518.0,0.17960432]
[1644038205951,0.00134422,41520.0,41519.0,0.05]
[1644038206151,0.001,41520.0,41519.0,0.05]
[1644038206550,0.001,41520.0,41518.0,0.09493619]
[1644038206750,0.00134422,41520.0,41519.0,0.03466813]
[1644038206950,0.001,41520.0,41519.0,0.06941332]
[1644038210210,0.18751063,41520.0,41519.0,0.06941332]
[1644038210607,0.001,41520.0,41519.0,0.06941332]
[1644038211111,0.00079621,41520.0,41519.0,0.06941332]
[1644038215120,0.00081482,41522.0,41520.0,0.81018488]
[1644038215311,0.00081482,41522.0,41521.0,0.360176]
[1644038215511,0.0011398,41523.0,41521.0,0.0482]
[1644038215709,0.00134195,41530.0,41523.0,0.85]
[1644038215909,0.00134195,41530.0,41529.0,0.05]
[1644038216310,0.00034468,41534.0,41531.0,0.060163]
[1644038216510,0.00731431,41536.0,41531.0,0.060163]
[1644038216511,0.00034468,41535.0,41531.0,0.160163]
[1644038216709,0.00731431,41536.0,41531.0,0.160163]
[1644038216710,0.00034468,41537.0,41533.0,0.6245894]
[1644038216909,0.00034468,41535.0,41533.0,0.7245894]
[1644038217110,0.00034468,41537.0,41533.0,0.7245894]
[1644038217310,0.00855968,41538.0,41535.0,0.05]
[1644038217512,0.00355968,41538.0,41536.0,0.060161]
[1644038217715,0.05,41537.0,41536.0,0.06016503]
[1644038217911,0.75,41536.0,41533.0,0.1]
[1644038218112,0.05,41534.0,41525.0,0.1719]
[1644038218313,0.37324901,41535.0,41525.0,0.1719]
[1644038218314,0.05,41526.0,41525.0,0.0482]
[1644038218711,0.05,41526.0,41524.0,0.02047924]
[1644038219160,0.05,41526.0,41525.0,0.180538]
[1644038220561,0.32408321,41526.0,41525.0,0.180538]
[1644038220760,0.32180878,41526.0,41525.0,0.180538]
[1644038220961,0.32180878,41526.0,41525.0,0.21528319]
[1644038221260,0.32180878,41526.0,41525.0,0.24995132]
[1644038221460,0.59642581,41526.0,41525.0,0.24995132]
[1644038222063,0.05,41526.0,41525.0,0.24995132]
[1644038223703,0.31597318,41526.0,41525.0,0.24995132]
[1644038225110,0.92175139,41526.0,41525.0,0.06941332]
[1644038225509,0.64708618,41526.0,41525.0,0.06941332]
[1644038230911,0.64208618,41526.0,41525.0,0.06941332]
[1644038232213,0.83528618,41526.0,41525.0,0.06941332]
[1644038233216,0.74028618,41526.0,41525.0,0.06941332]
[1644038233858,0.83528618,41526.0,41525.0,0.06941332]
[1644038235656,0.74028618,41526.0,41525.0,0.06941332]
[1644038236255,0.83528618,41526.0,41525.0,0.06941332]
[1644038237257,0.74028618,41526.0,41525.0,0.06941332]
[1644038237458,0.83528618,41526.0,41525.0,0.06941332]
[1644038237705,0.74028618,41526.0,41525.0,0.02100575]
[1644038237904,0.060211,41525.0,41523.0,0.00083637]
[1644038238104,0.58389805,41524.0,41523.0,0.00083637]
[1644038238306,0.58389805,41524.0,41513.0,0.83240259]
[1644038238307,0.57889805,41524.0,41513.0,0.83240259]
[1644038238508,0.18437462,41514.0,41513.0,0.83240259]
[1644038238904,0.045,41514.0,41513.0,0.83240259]
[1644038239304,0.18437462,41514.0,41513.0,0.83240259]
[1644038239905,0.045,41514.0,41513.0,0.83240259]
[1644038240706,0.18437462,41514.0,41513.0,0.83240259]
[1644038241653,0.045,41514.0,41513.0,0.83240259]
[1644038242650,0.18437462,41514.0,41513.0,0.83240259]
[1644038242850,0.045,41514.0,41513.0,0.83240259]
[1644038243051,0.045,41514.0,41513.0,0.85340834]
[1644038243452,0.18437462,41514.0,41513.0,0.85340834]
[1644038243651,0.045,41514.0,41513.0,0.85340834]
[1644038244652,0.18437462,41514.0,41513.0,0.85340834]
[1644038244851,0.18437462,41514.0,41513.0,0.99391889]
[1644038245305,0.045,41514.0,41513.0,0.99391889]
[1644038246205,0.045,41514.0,41513.0,0.85340834]
[1644038246406,0.045,41514.0,41513.0,0.99391889]
[1644038246611,0.045,41514.0,41513.0,0.85340834]
[1644038246808,0.045,41514.0,41513.0,0.99391889]
[1644038247008,0.045,41514.0,41513.0,0.85340834]
[1644038248410,0.045,41514.0,41513.0,0.84840834]
[1644038248861,0.045,41514.0,41513.0,0.14141675]
[1644038256872,0.045,41514.0,41513.0,0.02100575]
[1644038257074,0.68664877,41514.0,41513.0,0.02100575]
[1644038258573,0.68664877,41514.0,41511.0,0.00083651]
[1644038258574,0.331113,41512.0,41511.0,0.00083651]
[1644038258771,0.060231,41508.0,41498.0,0.14051055]
[1644038258971,0.18437462,41499.0,41496.0,0.005]